bitfinex/quotes_BTCUSD_20250607
["timestamp","ask_amount","ask_price","bid_price","bid_amount"]
[1749294898137,0.0624078,105290.0,105280.0,0.72226355]
[1749294898349,0.0624078,105290.0,105280.0,0.71276571]
[1749294898761,0.04459154,105290.0,105280.0,0.71276571]
[1749294899179,0.04459154,105290.0,105280.0,0.72226355]
[1749294899365,0.07190543,105290.0,105280.0,0.71276571]
[1749294899583,0.05408902,105290.0,105280.0,0.70326778]
[1749294899808,0.26185699,105290.0,105280.0,0.70326824]
[1749294900242,0.27745699,105290.0,105280.0,0.70326824]
[1749294900675,0.27745717,105290.0,105280.0,0.70326824]
[1749294900914,0.28695474,105290.0,105280.0,0.71276626]
[1749294901130,0.09700313,105290.0,105280.0,0.71276626]
[1749294901395,0.25964121,105290.0,105280.0,0.69377013]
[1749294901606,0.27745773,105290.0,105280.0,0.70326824]
[1749294902435,0.25964121,105290.0,105280.0,0.70326824]
[1749294902650,0.27745886,105290.0,105280.0,0.70326824]
[1749294903078,0.06240973,105290.0,105280.0,0.70326824]
[1749294903835,0.06240973,105290.0,105280.0,0.69377013]
[1749294904019,0.06240973,105290.0,105280.0,0.71276626]
[1749294904265,0.06240973,105290.0,105280.0,0.70326824]
[1749294904472,0.05408965,105290.0,105280.0,0.71276626]
[1749294904689,0.0719073,105290.0,105280.0,0.70326824]
[1749294904906,0.05408965,105290.0,105280.0,0.70326824]
[1749294905117,0.06240973,105290.0,105280.0,0.71276626]
[1749294905323,0.0719073,105290.0,105280.0,0.71276626]
[1749294905765,0.0719073,105290.0,105280.0,0.70326824]
[1749294905984,0.05408965,105290.0,105280.0,0.70326824]
[1749294906212,0.0719073,105290.0,105280.0,0.70326824]
[1749294906428,0.07190731,105290.0,105280.0,0.70326824]
[1749294906611,0.07190731,105290.0,105280.0,0.71276626]
[1749294907750,0.05291223,105290.0,105280.0,0.72226419]
[1749294907970,0.0350946,105290.0,105280.0,0.72226419]
[1749294908445,0.05291223,105290.0,105280.0,0.72226419]
[1749294909828,0.0350946,105290.0,105280.0,0.71276571]
[1749294910249,0.05291223,105290.0,105280.0,0.71276571]
[1749294910456,0.06240971,105290.0,105280.0,0.71276571]
[1749294910669,0.07190728,105290.0,105280.0,0.69376976]
[1749294911321,0.07190726,105290.0,105280.0,0.70326778]
[1749294911765,0.05408965,105290.0,105280.0,0.70326778]
[1749294912183,0.07190726,105290.0,105280.0,0.70326778]
[1749294913015,0.05408965,105290.0,105280.0,0.70326778]
[1749294913230,0.26185882,105290.0,105280.0,0.69377013]
[1749294913715,0.26185882,105290.0,105280.0,0.70326824]
[1749294914422,0.26185882,105290.0,105280.0,0.68427193]
[1749294914636,0.05291221,105290.0,105280.0,0.70326815]
[1749294914848,0.0350946,105290.0,105280.0,0.70326815]
[1749294915071,0.05291221,105290.0,105280.0,0.70326815]
[1749294915525,0.06240915,105290.0,105280.0,0.70326815]
[1749294915728,0.05291176,105290.0,105280.0,0.70326815]
[1749294915939,0.05291175,105290.0,105280.0,0.70326815]
[1749294916540,0.03509415,105290.0,105280.0,0.70326815]
[1749294916906,0.05291245,105290.0,105280.0,0.70326815]
[1749294917313,0.05291268,105290.0,105280.0,0.70326815]
[1749294917912,0.06240842,105290.0,105280.0,0.71276626]
[1749294918137,0.0624079,105290.0,105280.0,0.71276626]
[1749294918314,0.04459145,105290.0,105280.0,0.71276626]
[1749294918521,0.062407,105290.0,105280.0,0.71276626]
[1749294919299,0.04341249,105290.0,105280.0,0.71276626]
[1749294919510,0.06240673,105290.0,105280.0,0.72226419]
[1749294919711,0.06240546,105290.0,105280.0,0.72226419]
[1749294919924,0.04459118,105290.0,105280.0,0.72226419]
[1749294920104,0.06240625,105290.0,105280.0,0.71276626]
[1749294920339,0.07190355,105290.0,105280.0,0.71276626]
[1749294920578,0.07190355,105290.0,105280.0,0.72226419]
[1749294921070,0.05408848,105290.0,105280.0,0.72226419]
[1749294921259,0.07190355,105290.0,105280.0,0.72226419]
[1749294921653,0.03509397,105290.0,105280.0,0.72226419]
[1749294921860,0.06240625,105290.0,105280.0,0.71276571]
[1749294922037,0.06240624,105290.0,105280.0,0.70326778]
[1749294922382,0.04459118,105290.0,105280.0,0.70326778]
[1749294922604,0.06240625,105290.0,105280.0,0.70326778]
[1749294923012,0.04459118,105290.0,105280.0,0.71276571]
[1749294923237,0.06240625,105290.0,105280.0,0.71276571]
[1749294923443,0.04459118,105290.0,105280.0,0.71276571]
[1749294923646,0.06240625,105290.0,105280.0,0.70326778]
[1749294924054,0.04459118,105290.0,105280.0,0.70326778]
[1749294924678,0.06240625,105290.0,105280.0,0.70326778]
[1749294924895,0.04459118,105290.0,105280.0,0.69376976]
[1749294925285,0.04459118,105290.0,105280.0,0.70326778]
[1749294926239,0.06240633,105290.0,105280.0,0.70326778]
[1749294926488,0.06240632,105290.0,105280.0,0.69376976]
[1749294926683,0.04459127,105290.0,105280.0,0.69376976]
[1749294926896,0.06240632,105290.0,105280.0,0.69376976]
[1749294927098,0.04459127,105290.0,105280.0,0.69376976]
[1749294927302,0.06240632,105290.0,105280.0,0.69376976]
[1749294927902,0.06240632,105290.0,105280.0,0.69377013]
[1749294928108,0.06240632,105290.0,105280.0,0.70326824]
[1749294928545,0.06240628,105290.0,105280.0,0.70326824]
[1749294928951,0.06240591,105290.0,105280.0,0.70326824]
[1749294929081,0.04459127,105290.0,105280.0,0.70326824]
[1749294929488,0.06240445,105290.0,105280.0,0.70326824]
[1749294929694,0.04459127,105290.0,105280.0,0.68427193]
[1749294929896,0.07190175,105290.0,105280.0,0.70326843]
[1749294930112,0.05408866,105290.0,105280.0,0.70326843]
[1749294930323,0.0719017,105290.0,105280.0,0.70326843]
[1749294930745,0.04459127,105290.0,105280.0,0.70326843]
[1749294930940,0.06240512,105290.0,105280.0,0.70326843]
[1749294931486,0.06240503,105290.0,105280.0,0.71276645]
[1749294931685,0.06240447,105290.0,105280.0,0.71276645]
[1749294931810,0.04459118,105290.0,105280.0,0.71276645]
[1749294932014,0.06240473,105290.0,105280.0,0.70326843]
[1749294932220,0.06240473,105290.0,105280.0,0.71276645]
[1749294933088,0.06240473,105290.0,105280.0,0.72226438]
[1749294933537,0.06240473,105290.0,105280.0,0.71276645]
[1749294934029,0.06240473,105290.0,105280.0,0.70326843]
[1749294934225,0.04459118,105290.0,105280.0,0.71276645]
[1749294934449,0.06240474,105290.0,105280.0,0.71276645]
[1749294934656,0.06240474,105290.0,105280.0,0.70326843]
[1749294934856,0.06240474,105290.0,105280.0,0.71276654]
[1749294935146,0.06240474,105290.0,105280.0,0.71276663]
[1749294935381,0.04459118,105290.0,105280.0,0.72226465]
[1749294935582,0.03509397,105290.0,105280.0,0.72226465]
[1749294935788,0.06240323,105290.0,105280.0,0.7222641]
[1749294935975,0.06240314,105290.0,105280.0,0.7222641]
[1749294936203,0.06240314,105290.0,105280.0,0.71276617]
[1749294936537,0.06240316,105290.0,105280.0,0.71276617]
[1749294936938,0.06240298,105290.0,105280.0,0.70326815]
[1749294937140,0.05408839,105290.0,105280.0,0.70326815]
[1749294937339,0.04459109,105290.0,105280.0,0.70326815]
[1749294937588,0.07190013,105290.0,105280.0,0.71276617]
[1749294937791,0.07190013,105290.0,105280.0,0.69377013]
[1749294938007,0.07190013,105290.0,105280.0,0.70326824]
[1749294938246,0.08139743,105290.0,105280.0,0.70326824]
[1749294938456,0.07190049,105290.0,105280.0,0.70326833]
[1749294938667,0.07190049,105290.0,105280.0,0.71276644]
[1749294938871,0.05408866,105290.0,105280.0,0.71276644]
[1749294939078,0.05408866,105290.0,105280.0,0.72226446]
[1749294939282,0.07190044,105290.0,105280.0,0.72226446]
[1749294939528,0.06240314,105290.0,105280.0,0.72226446]
[1749294939950,0.07190053,105290.0,105280.0,0.72226446]
[1749294940363,0.04459136,105290.0,105280.0,0.71276598]
[1749294940566,0.05408875,105290.0,105280.0,0.70326805]
[1749294940770,0.07190104,105290.0,105280.0,0.70326805]
[1749294940978,0.07190104,105290.0,105280.0,0.71276607]
[1749294941185,0.05408875,105290.0,105280.0,0.70326805]
[1749294941390,0.05408875,105290.0,105280.0,0.71276607]
[1749294941604,0.07190104,105290.0,105280.0,0.70326805]
[1749294941755,0.07190104,105290.0,105280.0,0.71276607]
[1749294941966,0.07190103,105290.0,105280.0,0.70326805]
[1749294942162,0.05408875,105290.0,105280.0,0.70326805]
[1749294942479,0.07190103,105290.0,105280.0,0.70326805]
[1749294942680,0.07190107,105290.0,105280.0,0.70326805]
[1749294942891,0.05408875,105290.0,105280.0,0.70326805]
[1749294943072,0.07190107,105290.0,105280.0,0.70326805]
[1749294943650,0.06240368,105290.0,105280.0,0.70326805]
[1749294943850,0.07190107,105290.0,105280.0,0.71276607]
[1749294944038,0.05408875,105290.0,105280.0,0.70326805]
[1749294944618,0.07190266,105290.0,105280.0,0.70326805]
[1749294944820,0.05408875,105290.0,105280.0,0.70326805]
[1749294945172,0.07190286,105290.0,105280.0,0.70326805]
[1749294945377,0.07190305,105290.0,105280.0,0.69376994]
[1749294945582,0.07190305,105290.0,105280.0,0.70326805]
[1749294945839,0.07190312,105290.0,105280.0,0.70326805]
[1749294946039,0.05408875,105290.0,105280.0,0.71276607]
[1749294946163,0.07190331,105290.0,105280.0,0.71276607]
[1749294946579,0.07190322,105290.0,105280.0,0.71276607]
[1749294947593,0.05408866,105290.0,105280.0,0.71276607]
[1749294947800,0.07190456,105290.0,105280.0,0.71276607]
[1749294948001,0.05408866,105290.0,105280.0,0.722264]
[1749294948213,0.05291005,105290.0,105280.0,0.71276571]
[1749294948422,0.04341266,105290.0,105280.0,0.72226355]
[1749294948627,0.05290951,105290.0,105280.0,0.72226355]
[1749294949068,0.06240654,105290.0,105280.0,0.72226355]
[1749294949281,0.07190353,105290.0,105280.0,0.72226355]
[1749294949481,0.05408776,105290.0,105280.0,0.72226355]
[1749294949709,0.04459064,105290.0,105280.0,0.72226355]
[1749294950129,0.05290956,105290.0,105280.0,0.73816355]
[1749294951098,0.03509379,105290.0,105280.0,0.73816355]
[1749294951526,0.05290951,105290.0,105280.0,0.73816355]
[1749294952126,0.05290951,105290.0,105280.0,0.72226355]
[1749294952572,0.03391572,105290.0,105280.0,0.72226355]
[1749294952797,0.05291257,105290.0,105280.0,0.72226355]
[1749294953004,0.05291266,105290.0,105280.0,0.73826355]
[1749294953214,0.05291269,105290.0,105280.0,0.73826355]
[1749294953390,0.05291274,105290.0,105280.0,0.73826355]
[1749294953841,0.01781913,105290.0,105280.0,0.73826355]
[1749294954050,0.02731589,105290.0,105280.0,0.73826355]
[1749294954471,0.00949676,105290.0,105280.0,0.73826355]
[1749294954682,0.00949676,105290.0,105280.0,0.72876499]
[1749294955099,0.94649866,105300.0,105290.0,0.18995156]
[1749294955315,0.96431204,105300.0,105290.0,0.29584861]
[1749294955535,0.97099202,105300.0,105290.0,0.29584861]
[1749294955755,0.97099188,105300.0,105290.0,0.30534609]
[1749294955983,0.05320541,105300.0,105290.0,0.3148433]
[1749294956204,0.06270181,105300.0,105290.0,0.32434042]
[1749294956421,0.03939208,105300.0,105290.0,0.32433988]
[1749294956653,0.06670218,105300.0,105290.0,0.32433988]
[1749294956869,0.06470211,105300.0,105290.0,0.32433988]
[1749294957104,0.06570218,105300.0,105290.0,0.32433988]
[1749294957328,0.06370218,105300.0,105290.0,0.32433988]
[1749294957986,0.06370218,105300.0,105290.0,0.33383682]
[1749294958229,0.04588839,105300.0,105290.0,0.29584852]
[1749294958447,0.04588839,105300.0,105290.0,0.31484285]
[1749294958902,0.06370078,105300.0,105290.0,0.32433988]
[1749294959121,0.60991006,105300.0,105290.0,0.32433988]
[1749294959543,1.09871375,105300.0,105290.0,0.32433988]
[1749294959755,1.08090136,105300.0,105290.0,0.33383682]
[1749294959974,1.09871352,105300.0,105290.0,0.33383682]
[1749294960189,1.08921739,105300.0,105290.0,0.33383682]
[1749294960418,1.09039767,105300.0,105290.0,0.33383682]
[1749294960644,1.08090136,105300.0,105290.0,0.33383682]
[1749294960921,0.56200032,105300.0,105290.0,0.33383682]
[1749294961122,0.56200023,105300.0,105290.0,0.33383682]
[1749294961716,0.55250122,105300.0,105290.0,0.33383682]
[1749294961923,0.55250105,105300.0,105290.0,0.33383682]
[1749294962136,0.56199699,105300.0,105290.0,0.33383682]
[1749294962903,0.53350869,105300.0,105290.0,0.33383682]
[1749294963120,0.55250068,105300.0,105290.0,0.33383682]
[1749294963544,0.55249764,105300.0,105290.0,0.33383682]
[1749294963760,0.56199395,105300.0,105290.0,0.33383682]
[1749294963976,0.53469199,105300.0,105290.0,0.33383682]
[1749294964197,0.5441883,105300.0,105290.0,0.33383682]
[1749294964407,0.56199446,105300.0,105290.0,0.33383682]
[1749294965122,0.56199404,105300.0,105290.0,0.33383682]
[1749294965546,0.56199403,105300.0,105290.0,0.33383682]
[1749294965758,0.55249772,105300.0,105290.0,0.33383682]
[1749294965963,0.53469199,105300.0,105290.0,0.33383682]
[1749294966165,0.55249771,105300.0,105290.0,0.33383682]
[1749294966973,0.56199402,105300.0,105290.0,0.42191682]
[1749294967192,0.54418821,105300.0,105290.0,0.42191682]
[1749294967405,0.56199231,105300.0,105290.0,0.42191682]
[1749294967822,0.55249604,105300.0,105290.0,0.42191682]
[1749294968051,0.55249609,105300.0,105290.0,0.42191682]
[1749294968369,0.55249523,105300.0,105290.0,0.42191682]
[1749294968587,0.57148785,105300.0,105290.0,0.42191682]
[1749294968798,0.57148774,105300.0,105290.0,0.41241988]
[1749294969017,0.57148774,105300.0,105290.0,0.40292285]
[1749294969237,0.5619914,105300.0,105290.0,0.41241979]
[1749294969666,0.56199122,105300.0,105290.0,0.41241979]
[1749294970909,0.57148766,105300.0,105290.0,0.41241979]
[1749294971123,0.57148771,105300.0,105290.0,0.41241979]
[1749294971330,0.56199131,105300.0,105290.0,0.41241979]
[1749294971538,0.56199136,105300.0,105290.0,0.41241979]
[1749294972158,0.56199098,105300.0,105290.0,0.41241979]
[1749294972617,0.54418821,105300.0,105290.0,0.41241979]
[1749294973025,0.53469199,105300.0,105290.0,0.41241979]
[1749294973241,0.55249479,105300.0,105290.0,0.41241979]
[1749294973767,0.55249479,105300.0,105290.0,0.41075458]
[1749294973964,0.53469199,105300.0,105290.0,0.41075458]
[1749294974189,0.55249446,105300.0,105290.0,0.41075458]
[1749294974393,0.55249453,105300.0,105290.0,0.41075458]
[1749294974601,0.5429984,105300.0,105290.0,0.41075458]
[1749294975021,0.54299822,105300.0,105290.0,0.41075458]
[1749294975731,0.54299789,105300.0,105290.0,0.41075458]
[1749294976165,0.55249395,105300.0,105290.0,0.41075458]
[1749294976372,0.5346919,105300.0,105290.0,0.41075458]
[1749294976573,0.55249398,105300.0,105290.0,0.41075458]
[1749294976801,0.5524948,105300.0,105290.0,0.41075458]
[1749294977195,0.54299876,105300.0,105290.0,0.41075458]
[1749294977429,0.5335029,105300.0,105290.0,0.41075458]
[1749294977656,0.52519586,105300.0,105290.0,0.41075458]
[1749294977860,0.54299877,105300.0,105290.0,0.41075458]
[1749294978423,0.5430001,105300.0,105290.0,0.41075458]
[1749294978651,0.54300019,105300.0,105290.0,0.41075458]
[1749294980034,0.5430003,105300.0,105290.0,0.41075458]
[1749294980469,0.53350421,105300.0,105290.0,0.41075458]
[1749294980681,0.5430026,105300.0,105290.0,0.41075458]
[1749294980897,0.53350665,105300.0,105290.0,0.41075458]
[1749294981326,0.5157,105300.0,105290.0,0.41075458]
[1749294981529,0.54300288,105300.0,105290.0,0.41075458]
[1749294981739,0.52519604,105300.0,105290.0,0.41075458]
[1749294981996,0.54300294,105300.0,105290.0,0.41075458]
[1749294982209,0.52519604,105300.0,105290.0,0.41075458]
[1749294982422,0.52519595,105300.0,105290.0,0.41075458]
[1749294982841,0.54300757,105300.0,105290.0,0.41075458]
[1749294983082,0.53351162,105300.0,105290.0,0.41075458]
[1749294983314,0.5157,105300.0,105290.0,0.41075458]
[1749294983587,0.53351116,105300.0,105290.0,0.41075458]
[1749294983794,0.54300711,105300.0,105290.0,0.41075458]
[1749294984020,0.54300967,105300.0,105290.0,0.41075458]
[1749294984236,0.54300977,105300.0,105290.0,0.41075458]
[1749294984451,0.53351382,105300.0,105290.0,0.41075458]
[1749294984671,0.4993,105300.0,105290.0,0.98866386]
[1749294984883,0.001,105300.0,105290.0,1.01720586]
[1749294985090,0.001,105300.0,105290.0,1.09309819]
[1749294985750,0.56220928,105320.0,105310.0,0.21840171]
[1749294985961,0.0444829,105320.0,105310.0,0.7010566]
[1749294986165,0.0783711,105320.0,105310.0,0.7010566]
[1749294986586,0.07837101,105320.0,105310.0,0.71055174]
[1749294987008,0.05277659,105320.0,105310.0,0.69156137]
[1749294987222,0.05277644,105320.0,105310.0,0.70105651]
[1749294988070,0.06227104,105320.0,105310.0,0.69156137]
[1749294988278,0.06227095,105320.0,105310.0,0.7010566]
[1749294988489,0.05277644,105320.0,105310.0,0.71055174]
[1749294988699,0.04427214,105320.0,105310.0,0.71055174]
[1749294988913,0.06326068,105320.0,105310.0,0.71055174]
[1749294989327,0.04548263,105320.0,105310.0,0.71055174]
[1749294989531,0.06326068,105320.0,105310.0,0.71055174]
[1749294989748,0.04548263,105320.0,105310.0,0.71055174]
[1749294989998,0.06326084,105320.0,105310.0,0.71055174]
[1749294990196,0.07275553,105320.0,105310.0,0.71055174]
[1749294990403,0.07275544,105320.0,105310.0,0.71055174]
[1749294990698,0.05497723,105320.0,105310.0,1.33351804]
[1749294990944,0.001,105320.0,105310.0,2.6153805]
[1749294991174,0.001,105320.0,105310.0,1.55149194]
[1749294991387,0.001,105320.0,105310.0,1.72094122]
[1749294991599,0.001,105320.0,105310.0,2.09766122]
[1749294991810,0.4983,105330.0,105320.0,0.24988098]
[1749294992023,0.4983,105330.0,105320.0,1.68505902]
[1749294993529,0.4983,105330.0,105320.0,1.71659002]
[1749294994903,0.4983,105330.0,105320.0,1.71759002]
[1749294997075,0.4983,105330.0,105320.0,2.09427002]
[1749295000119,0.4983,105330.0,105320.0,2.07907002]
[1749295003882,0.4983,105330.0,105320.0,0.98665146]
[1749295004090,0.4983,105330.0,105320.0,2.07907002]
[1749295010096,0.4983,105330.0,105320.0,1.70239002]
[1749295010308,0.53,105330.0,105320.0,1.51640074]
[1749295012324,0.53,105330.0,105320.0,2.06261002]
[1749295013655,0.53,105330.0,105320.0,2.06251067]
[1749295020930,0.5149,105330.0,105320.0,2.06251067]
[1749295021643,0.5149,105330.0,105320.0,1.51630139]
[1749295024979,0.5311,105330.0,105320.0,1.51630139]
[1749295025200,0.5149,105330.0,105320.0,1.51630139]
[1749295030185,0.5311,105330.0,105320.0,1.51630139]
[1749295031584,0.5149,105330.0,105320.0,1.51630139]
[1749295033381,0.5149,105330.0,105320.0,0.97009211]
[1749295033816,0.5149,105330.0,105320.0,0.94156111]
[1749295034790,0.5304,105330.0,105320.0,0.94156111]
[1749295035454,0.5304,105330.0,105320.0,1.48777039]
[1749295036761,0.5149,105330.0,105320.0,1.48777039]
[1749295037319,0.54888659,105330.0,105320.0,0.65300111]
[1749295037537,0.5488865,105330.0,105320.0,0.94152111]
[1749295037980,0.55838002,105330.0,105320.0,1.11125039]
[1749295038201,0.55838002,105330.0,105320.0,1.48777039]
[1749295038420,0.75775323,105330.0,105320.0,0.93206687]
[1749295038636,0.75775323,105330.0,105320.0,0.9321664]
[1749295038637,1.3027861,105330.0,105320.0,0.9321664]
[1749295038863,1.3027861,105330.0,105320.0,0.94166091]
[1749295039077,1.30279184,105330.0,105320.0,0.94166091]
[1749295039289,1.28497601,105330.0,105320.0,0.94166091]
[1749295039724,1.30279184,105330.0,105320.0,0.94166091]
[1749295040639,1.3027697,105330.0,105320.0,0.94166091]
[1749295040845,1.3027697,105330.0,105320.0,0.9321664]
[1749295041054,1.3027697,105330.0,105320.0,0.72327948]
[1749295041271,1.29327618,105330.0,105320.0,0.72327948]
[1749295041486,0.74706697,105330.0,105320.0,0.72327948]
[1749295041690,1.29327625,105330.0,105320.0,0.73277435]
[1749295042144,1.29327625,105330.0,105320.0,0.72327948]
[1749295042551,0.79496798,105330.0,105320.0,0.72327948]
[1749295043334,0.79496799,105330.0,105320.0,0.72327948]
[1749295044193,0.79496799,105330.0,105320.0,0.73277435]
[1749295044439,0.7854742,105330.0,105320.0,0.73277435]
[1749295044644,0.7854742,105330.0,105320.0,0.72327948]
[1749295044855,0.78547441,105330.0,105320.0,0.72327948]
[1749295045074,0.7676887,105330.0,105320.0,0.72327948]
[1749295045290,0.78547444,105330.0,105320.0,0.72327948]
[1749295045501,0.78547461,105330.0,105320.0,0.72327948]
[1749295046366,0.78546756,105330.0,105320.0,0.72327948]
[1749295047227,0.7676887,105330.0,105320.0,0.72327948]
[1749295047434,0.78546756,105330.0,105320.0,0.72327948]
[1749295047876,0.78546766,105330.0,105320.0,0.72327948]
[1749295048072,0.78546638,105330.0,105320.0,0.72327948]
[1749295048291,0.78546648,105330.0,105320.0,0.43475948]
[1749295048495,0.78546655,105330.0,105320.0,0.72327948]
[1749295048700,0.78546655,105330.0,105320.0,0.43475948]
[1749295048911,0.7676887,105330.0,105320.0,0.62688]
[1749295049120,0.78546701,105330.0,105320.0,0.25036]
[1749295049335,0.78546701,105330.0,105320.0,0.62684]
[1749295049779,0.78546724,105330.0,105320.0,0.62684]
[1749295050200,0.7676887,105330.0,105320.0,0.62684]
[1749295050604,0.78546724,105330.0,105320.0,0.62684]
[1749295050821,0.7676887,105330.0,105320.0,0.62684]
[1749295051233,0.78546724,105330.0,105320.0,0.62684]
[1749295051435,0.7676887,105330.0,105320.0,0.62684]
[1749295051643,0.78546729,105330.0,105320.0,0.62684]
[1749295051997,0.78546594,105330.0,105320.0,0.62684]
[1749295052225,0.7676887,105330.0,105320.0,0.62684]
[1749295052427,0.7854593,105330.0,105320.0,0.62684]
[1749295053031,0.7676887,105330.0,105320.0,0.62684]
[1749295053459,0.7854593,105330.0,105320.0,0.62684]
[1749295054613,0.7676887,105330.0,105320.0,0.62684]
[1749295055190,0.7854593,105330.0,105320.0,0.62684]
[1749295056397,0.7676887,105330.0,105320.0,0.62684]
[1749295056809,0.78545826,105330.0,105320.0,0.62684]
[1749295057227,0.7676887,105330.0,105320.0,0.62684]
[1749295057430,0.78545826,105330.0,105320.0,0.62684]
[1749295058126,0.78545744,105330.0,105320.0,0.62684]
[1749295058293,0.7676887,105330.0,105320.0,0.62684]
[1749295058496,0.78545756,105330.0,105320.0,0.62684]
[1749295059467,0.7854541,105330.0,105320.0,0.62684]
[1749295059726,0.7676887,105330.0,105320.0,0.62684]
[1749295060748,0.78545461,105330.0,105320.0,0.62684]
[1749295061188,0.7676887,105330.0,105320.0,0.62684]
[1749295061368,0.78545397,105330.0,105320.0,0.62684]
[1749295061574,0.7676887,105330.0,105320.0,0.62684]
[1749295061980,0.78545397,105330.0,105320.0,0.62684]
[1749295063015,0.7676887,105330.0,105320.0,0.62684]
[1749295063222,0.78545397,105330.0,105320.0,0.62684]
[1749295063431,0.78545699,105330.0,105320.0,0.62684]
[1749295064626,0.7676887,105330.0,105320.0,0.62684]
[1749295064842,0.78545783,105330.0,105320.0,0.62684]
[1749295065187,0.78546531,105330.0,105320.0,0.62684]
[1749295066668,0.7676887,105330.0,105320.0,0.62684]
[1749295066876,0.78546531,105330.0,105320.0,0.62684]
[1749295067316,0.78548512,105330.0,105320.0,0.62684]
[1749295067737,0.7676887,105330.0,105320.0,0.62684]
[1749295068605,0.78548512,105330.0,105320.0,0.62684]
[1749295069239,0.7676887,105330.0,105320.0,0.62684]
[1749295069697,0.78548576,105330.0,105320.0,0.62684]
[1749295069906,0.7676887,105330.0,105320.0,0.62684]
[1749295070126,0.78548576,105330.0,105320.0,0.62684]
[1749295071294,0.78548845,105330.0,105320.0,0.62684]
[1749295072685,0.78549464,105330.0,105320.0,0.38048]
[1749295073274,0.7676887,105330.0,105320.0,0.38048]
[1749295073917,0.78549464,105330.0,105320.0,0.38048]
[1749295074988,0.7676887,105330.0,105320.0,0.38048]
[1749295075166,0.78549535,105330.0,105320.0,0.38048]
[1749295075977,0.79217603,105330.0,105320.0,0.38048]
[1749295076559,0.7676887,105330.0,105320.0,0.38048]
[1749295076830,0.79218453,105330.0,105320.0,0.38048]
[1749295077968,0.79218475,105330.0,105320.0,0.38048]
[1749295078369,0.77436944,105330.0,105320.0,0.38048]
[1749295078545,0.79218475,105330.0,105320.0,0.38048]
[1749295078772,0.78550401,105330.0,105320.0,0.38048]
[1749295078968,0.79218475,105330.0,105320.0,0.38048]
[1749295079897,0.7676887,105330.0,105320.0,0.38048]
[1749295080101,0.79218493,105330.0,105320.0,0.38048]
[1749295080426,0.77436949,105330.0,105320.0,0.38048]
[1749295080624,0.79218493,105330.0,105320.0,0.38048]
[1749295081502,0.78550414,105330.0,105320.0,0.38048]
[1749295081737,0.79218496,105330.0,105320.0,0.38048]
[1749295081943,0.79218506,105330.0,105320.0,0.38048]
[1749295082363,0.77436995,105330.0,105320.0,0.38048]
[1749295082605,0.79218662,105330.0,105320.0,0.38048]
[1749295083615,0.77436995,105330.0,105320.0,0.38048]
[1749295083754,0.79218666,105330.0,105320.0,0.38048]
[1749295083955,0.7855054,105330.0,105320.0,0.38048]
[1749295084367,0.79218666,105330.0,105320.0,0.38048]
[1749295085581,0.77436996,105330.0,105320.0,0.38048]
[1749295085775,0.7676887,105330.0,105320.0,0.38048]
[1749295086017,0.7855054,105330.0,105320.0,0.38048]
[1749295086228,0.79218666,105330.0,105320.0,0.38048]
[1749295086429,0.7921867,105330.0,105320.0,0.38048]
[1749295087050,0.77436997,105330.0,105320.0,0.38048]
[1749295087256,0.7921867,105330.0,105320.0,0.38048]
[1749295087459,0.78550543,105330.0,105320.0,0.38048]
[1749295087611,0.7676887,105330.0,105320.0,0.38048]
[1749295087825,0.7921867,105330.0,105320.0,0.38048]
[1749295089100,0.79218729,105330.0,105320.0,0.38048]
[1749295089493,0.77437013,105330.0,105320.0,0.38048]
[1749295089696,0.7676887,105330.0,105320.0,0.38048]
[1749295089927,0.79218729,105330.0,105320.0,0.38048]
[1749295090580,0.77437014,105330.0,105320.0,0.38048]
[1749295090795,0.77437017,105330.0,105320.0,0.38048]
[1749295091003,0.79218743,105330.0,105320.0,0.38048]
[1749295092111,0.03680403,105330.0,105320.0,0.71106046]
[1749295092329,0.04629782,105330.0,105320.0,0.71106046]
[1749295092549,0.05579059,105330.0,105320.0,0.71106046]
[1749295092769,0.03797426,105330.0,105320.0,0.71106046]
[1749295092996,0.05437426,105330.0,105320.0,0.71106046]
[1749295093449,0.07219059,105330.0,105320.0,0.71106046]
[1749295093887,0.07218266,105330.0,105320.0,0.71106046]
[1749295094307,0.07218227,105330.0,105320.0,0.71106046]
[1749295094928,0.06386814,105330.0,105320.0,0.71106046]
[1749295095130,0.08167615,105330.0,105320.0,0.71106046]
[1749295095762,0.08167381,105330.0,105320.0,0.70156622]
[1749295095973,0.26205997,105330.0,105320.0,0.71106064]
[1749295096177,0.80826925,105330.0,105320.0,0.71106064]
[1749295096379,0.79046359,105330.0,105320.0,0.71106064]
[1749295096595,0.78097007,105330.0,105320.0,0.30928622]
[1749295096776,0.78097007,105330.0,105320.0,0.69514064]
[1749295097016,0.79877574,105330.0,105320.0,0.70463497]
[1749295097321,0.80826971,105330.0,105320.0,0.70463497]
[1749295097527,0.79046404,105330.0,105320.0,0.70463497]
[1749295097799,0.80826844,105330.0,105320.0,0.70463497]
[1749295098423,0.79046404,105330.0,105320.0,0.70463497]
[1749295098838,0.80826844,105330.0,105320.0,0.68564622]
[1749295099471,0.80826805,105330.0,105320.0,0.18831948]
[1749295099676,0.77147655,105330.0,105320.0,0.47671948]
[1749295099904,0.78928108,105330.0,105320.0,0.38032]
[1749295100102,0.78928108,105330.0,105320.0,0.004]
[1749295100103,0.80568148,105330.0,105320.0,0.004]
[1749295100314,0.80568148,105330.0,105320.0,0.38032]
[1749295100315,0.78787655,105330.0,105320.0,0.38032]
[1749295100523,0.8056815,105330.0,105320.0,0.38032]
[1749295100724,0.81235849,105330.0,105320.0,0.38032]
[1749295101308,0.8123593,105330.0,105320.0,0.38032]
[1749295101740,0.79455371,105330.0,105320.0,0.38032]
[1749295101939,0.81235947,105330.0,105320.0,0.38032]
[1749295102676,0.80568231,105330.0,105320.0,0.38032]
[1749295102897,0.81235874,105330.0,105320.0,0.38032]
[1749295103309,0.78787655,105330.0,105320.0,0.38032]
[1749295103721,0.81235695,105330.0,105320.0,0.38032]
[1749295103930,0.81235698,105330.0,105320.0,0.38032]
[1749295104537,0.81235613,105330.0,105320.0,0.38032]
[1749295104691,0.81235384,105330.0,105320.0,0.38032]
[1749295104894,0.80567822,105330.0,105320.0,0.38032]
[1749295105093,0.81235384,105330.0,105320.0,0.38032]
[1749295105280,0.79455217,105330.0,105320.0,0.38032]
[1749295105486,0.81235384,105330.0,105320.0,0.38032]
[1749295106277,0.80567822,105330.0,105320.0,0.38032]
[1749295106493,0.81235247,105330.0,105320.0,0.38032]
[1749295106616,0.7945518,105330.0,105320.0,0.38032]
[1749295106835,0.80567722,105330.0,105320.0,0.38032]
[1749295107510,0.7945518,105330.0,105320.0,0.38032]
[1749295107712,0.81235247,105330.0,105320.0,0.38032]
[1749295108324,0.81235218,105330.0,105320.0,0.38032]
[1749295108745,0.81235141,105330.0,105320.0,0.38032]
[1749295108950,0.80567645,105330.0,105320.0,0.38032]
[1749295109129,0.78787655,105330.0,105320.0,0.38032]
[1749295109350,0.81235141,105330.0,105320.0,0.38032]